[Event "73rd Greek Championship 2024"]
[Site "Thessaloniki"]
[Date "2024.12.04"]
[Round "3.1"]
[White "Mitsis, Georgios"]
[Black "Patrelakis, Evaggelos"]
[Result "1-0"]
[Annotator "TA"]
[ECO "E12"]
[WhiteElo "2383"]
[BlackElo "2437"]
[PlyCount "227"]
[EventDate "2024.12.02"]
[EventType "tourn"]
[EventCountry "GRE"]
[SourceTitle "playchess.com"]
[Source "ChessBase"]
[SourceQuality "1"]
[TimeControl "40/5400+30:1800+30"]

{[%evp 131,227,8,475,373,373,351,391,395,404,372,429,379,331,297,1147,1162,959,137,143,140,149,162,298,268,814,804,903,833,12842,3827,6560,11774,5734,29953,29955,29951,29951,29954,29956,29960,29958,29961,29968,29963,29964,29963,29964,29964,29964,29965,29961,1134,29969,29970,29971,29970,29971,29970,29970,29972,29971,29973,29974,29975,29975,29976,29975,29976,29980,29981,29981,29982,29982,29983,29986,29981,29988,29979,29977,29978,29977,29978,29986,29982,29990,29977,29976,12839,29983,29984,29984,29985,29985,29986,29986,29987,29987,29988]} 1. d4 {[%emt 0:00:08]} Nf6 {[%emt 0:00:24]} 2. Nf3 {[%emt 0:00:32]} e6 {[%emt 0:00:27]} 3. c4 {[%emt 0:00:08]} b6 {[%emt 0:00:25]} 4. a3 {[%emt 0:00:45]} Bb7 {[%emt 0:00:38]} 5. Nc3 {[%emt 0:00:15]} d5 {[%emt 0:00:24]} 6. cxd5 {[%emt 0:00:59]} Nxd5 {[%emt 0:00:27]} 7. e3 {[%emt 0:00:54]} Be7 {[%emt 0:01:21]} 8. Bd3 {[%emt 0:00:11]} Nxc3 {[%emt 0:07:41]} 9. bxc3 {[%emt 0:00:11]} O-O {[%emt 0:00:44]} 10. O-O {[%emt 0:00:36]} c5 {[%emt 0:00:51]} 11. e4 {[%emt 0:02:17]} Nd7 {[%emt 0:03:39]} 12. Qe2 {[%emt 0:00:40]} Qc7 {[%emt 0:01:36]} 13. a4 {[%emt 0:01:29]} Rac8 {[%emt 0:03:31]} 14. Bd2 {[%emt 0:12:42]} Rfd8 {[%emt 0:10:09]} 15. Rfe1 {[%emt 0:00:10]} e5 {[%emt 0:18:04]} 16. Rac1 {[%emt 0:39:24]} c4 {[%emt 0:13:04]} 17. Bc2 {[%emt 0:00:12]} Re8 {[%emt 0:04:56]} 18. d5 {[%emt 0:06:21]} Ba6 {[%emt 0:03:05]} 19. Rb1 {[%emt 0:05:31]} Rb8 {[%emt 0:06:08]} 20. h4 {[%emt 0:01:46]} Nc5 {[%emt 0:00:44]} 21. h5 {[%emt 0:02:27]} h6 {[%emt 0:03:02]} 22. Be3 {[%emt 0:03:36]} Nd3 {[%emt 0:04:17]} 23. Rf1 {[%emt 0:00:48]} Bc5 {[%emt 0:02:14]} 24. Nh4 {[%emt 0:01:34]} Nf4 {[%emt 0:01:04]} 25. Qf3 {[%emt 0:01:14]} Bc8 {[%emt 0:03:12]} 26. Bxc5 {[%emt 0:03:06]} Qxc5 {[%emt 0:00:21]} 27. g3 {[%emt 0:00:10]} Nh3+ {[%emt 0:01:40]} 28. Kh2 {[%emt 0:00:07]} Ng5 {[%emt 0:00:55]} 29. Qe2 {[%emt 0:00:30]} Bd7 {[%emt 0:02:27]} 30. Rb4 {[%emt 0:04:12]} Rbc8 {[%emt 0:00:22]} 31. Rfb1 {[%emt 0:01:23]} Bg4 {[%emt 0:00:47]} 32. f3 {[%emt 0:00:30]} Bxh5 {[%emt 0:00:10]} 33. g4 {[%emt 0:02:14]} Bg6 {[%emt 0:00:02]} 34. Kg3 {[%emt 0:01:57]} Red8 {[%emt 0:01:23]} 35. Ng2 {[%emt 0:00:19]} Qe7 {[%emt 0:07:46]} 36. Rh1 {[%emt 0:02:06]} Qf6 {[%emt 0:00:00]} 37. Bd1 {[%emt 0:00:33]} a6 {[%emt 0:00:00]} 38. Qe3 {[%emt 0:00:59]} b5 {[%emt 0:00:00]} 39. axb5 {[%emt 0:00:24]} axb5 {[%emt 0:00:00]} 40. Rxb5 {[%emt 0:00:00]} Rb8 {[%emt 0:00:00]} 41. Rxb8 {[%emt 0:05:24]} Rxb8 {[%emt 0:01:25]} 42. Be2 {[%emt 0:01:51]} Ra8 {[%emt 0:07:16]} 43. Bxc4 {[%emt 0:06:15]} Ra3 {[%emt 0:04:50]} 44. Be2 {[%emt 0:03:27]} Qd6 {[%emt 0:04:43]} 45. Rd1 {[%emt 0:01:58]} Nh7 {[%emt 0:02:47]} 46. Rd3 {[%emt 0:00:41]} Ra4 {[%emt 0:01:15]} 47. Bd1 {[%emt 0:05:09]} Ra5 {[%emt 0:01:02]} 48. c4 {[%emt 0:00:21]} Nf6 {[%emt 0:00:25]} 49. Rc3 {[%emt 0:00:23]} Nd7 {[%emt 0:00:25]} 50. Ne1 {[%emt 0:02:53]} Qb4 {[%emt 0:01:45]} 51. Nc2 {[%emt 0:03:34]} Qb1 {[%emt 0:00:31]} 52. Be2 {[%emt 0:02:58]} Ra2 {[%emt 0:00:33]} 53. Bd3 {[%emt 0:01:29]} Qb2 {[%emt 0:00:40]} 54. Be2 {[%emt 0:01:36]} Qb1 {[%emt 0:00:08]} 55. Bd3 {[%emt 0:02:32]} Qb2 {[%emt 0:00:09]} 56. Bf1 {[%emt 0:01:50]} Nc5 {[%emt 0:00:53]} 57. Ra3 {[%emt 0:00:38]} Rxa3 {[%emt 0:04:04]} 58. Nxa3 {[%emt 0:00:45]} Nb3 {[%emt 0:00:07]} 59. Nb5 {[%emt 0:00:23]} Nd2 {[%emt 0:01:03]} 60. Be2 {[%emt 0:00:37]} h5 {[%emt 0:05:30]} 61. gxh5 {[%emt 0:00:58]} f5 {[%emt 0:00:45]} 62. exf5 {[%emt 0:00:33]} Bxf5 {[%emt 0:00:03]} 63. Qc3 {[%emt 0:01:29]} Qb1 {[%emt 0:00:58]} 64. Qxe5 {[%emt 0:00:52]} Qg1+ {[%emt 0:01:11]} 65. Kf4 {[%emt 0:00:07]} Bd7 {[%emt 0:01:29]} 66. Qd4 $2 {[%emt 0:00:50]} (66. Qb8+ $18 Kf7 67. Nd6+ Ke7 68. Nf5+ Kf7 69. Qc7 Qh2+) 66... Qe1 $2 {[%emt 0:00:41][%mdl 8192]} (66... Qh2+ $1 $11 67. Ke3 Nb3) 67. Nc3 {[%emt 0:00:35]} Nb3 {[%emt 0:00:39] [#]} 68. Qe5 $1 {[%emt 0:00:21]} Qc1+ {[%emt 0:00:29]} 69. Qe3 {[%emt 0:00:23]} Qe1 {[%emt 0:00:03]} 70. Ke5 {[%emt 0:00:44]} Qg3+ {[%emt 0:00:25]} 71. Ke4 {[%emt 0:00:20]} Qh4+ {[%emt 0:00:59]} 72. Kd3 {[%emt 0:00:20]} Qe1 $2 {[%emt 0:00:08]} (72... Bf5+ 73. Ne4 Qe1) 73. Kc2 $18 {[%emt 0:00:25]} Na5 {[%emt 0:00:52]} 74. Qc1 $2 {[%emt 0:00:30]} (74. Qg5 $18 {has better winning chances. Strongly threatening Qd8+.} Ba4+ 75. Kb2 Nxc4+ 76. Bxc4 Qf2+ 77. Ne2 Qb6+ 78. Kc3) 74... Bf5+ $16 {[%emt 0:00:15]} 75. Kb2 {[%emt 0:00:05]} Qf2 {[%emt 0:00:06]} 76. Ka3 {[%emt 0:01:22]} ({Much weaker is} 76. Qf4 $6 Bd3 77. Qc7 (77. Qb8+ Kh7 $11) 77... Nxc4+ 78. Kb3 Bxe2 $11 (78... Nd2+ 79. Ka3 $11)) 76... Qc5+ {[%emt 0:00:50]} (76... Qa7 $142 77. Kb4 Nb7) 77. Ka2 $18 {[%emt 0:00:10]} Nxc4 $2 {[%emt 0:00:37] [#]} (77... Nb7 78. Nb5 Qb6) 78. Na4 $1 $18 {[%emt 0:00:39]} Bb1+ {[%emt 0:00:35]} 79. Kxb1 {[%emt 0:00:22]} (79. Qxb1 $2 Qa3#) 79... Na3+ {[%emt 0:00:49]} 80. Kb2 {[%emt 0:00:04]} Qb4+ {[%emt 0:00:28]} 81. Ka2 {[%emt 0:00:02]} Nb1 {[%emt 0:00:28]} 82. Qxb1 {[%emt 0:01:03]} Qxa4+ {[%emt 0:00:03]} 83. Kb2 {[%emt 0:00:07]} Qb4+ {[%emt 0:00:32]} 84. Kc2 {[%emt 0:00:05]} Qc5+ {[%emt 0:00:14]} 85. Kd2 {[%emt 0:00:15]} Qxd5+ {[%emt 0:00:30]} 86. Ke1 {[%emt 0:00:13]} Qxh5 {[%emt 0:00:37]} 87. Qb3+ {[%emt 0:00:09]} Kh7 {[%emt 0:00:29]} 88. Qd3+ {[%emt 0:00:24]} g6 {[%emt 0:00:18]} 89. Qd7+ {[%emt 0:00:12]} Kh6 {[%emt 0:00:13]} 90. Qd2+ {[%emt 0:00:07]} Kh7 {[%emt 0:00:10]} 91. Qf4 {[%emt 0:00:11]} (91. Qd6 $142 Qh4+ 92. Kd2 Qg5+ 93. Kc2 Kg7 94. Qd7+ Kh8 95. Qc6 Kg7 96. Bd3) 91... Qa5+ {[%emt 0:00:26]} 92. Kf2 {[%emt 0:00:13]} Qb6+ {[%emt 0:00:26]} 93. Kg2 {[%emt 0:00:12]} Qb2 {[%emt 0:00:22]} 94. Qh4+ {[%emt 0:00:19]} Kg7 {[%emt 0:00:27]} 95. Qe7+ {[%emt 0:00:06]} Kh6 {[%emt 0:00:06]} 96. f4 {[%emt 0:00:35]} Qd2 {[%emt 0:00:17]} 97. Qe5 {[%emt 0:00:12]} Kh7 {[%emt 0:00:15]} 98. Kh3 {[%emt 0:00:38]} Qc1 {[%emt 0:00:33]} 99. Kh4 {[%emt 0:02:10]} Qh1+ {[%emt 0:00:49]} 100. Kg5 {[%emt 0:00:12]} Qh6+ {[%emt 0:01:39]} 101. Kg4 {[%emt 0:00:07]} Qf8 {[%emt 0:00:05]} 102. Bd3 {[%emt 0:01:20]} Qc8+ {[%emt 0:00:44]} 103. Kg3 {[%emt 0:00:38]} Qc6 {[%emt 0:00:42]} 104. Be4 {[%emt 0:00:06]} Qb6 {[%emt 0:00:39]} 105. Kh4 {[%emt 0:03:04]} Qd8+ {[%emt 0:00:44]} 106. Kh3 {[%emt 0:00:37]} Qc8+ {[%emt 0:00:32]} 107. Kg3 {[%emt 0:00:11]} Qa6 {[%emt 0:00:20]} 108. Kh4 {[%emt 0:00:31]} Qb6 {[%emt 0:00:18]} 109. Kg5 {[%emt 0:01:06]} (109. Bd5 $142 Qa7 110. Kg5 Qd7 111. Kf6 Qg7+ 112. Ke6 Qa7 113. Be4 Kg8 114. Kf6 (114. Bxg6 Qe7+ 115. Kf5 Qf8+ 116. Kg4 Qc8+ 117. f5 Qd8 $18) 114... Qg7+ 115. Kg5 Qxe5+ 116. fxe5) 109... Qg1+ {[%emt 0:01:15]} 110. Kf6 {[%emt 0:00:06]} Qb6+ {[%emt 0:00:08]} 111. Kf7 {[%emt 0:00:20]} Qa7+ {[%emt 0:01:10]} 112. Qe7 {[%emt 0:00:20]} Qxe7+ {[%emt 0:00:34]} 113. Kxe7 {[%emt 0:00:05]} Kg7 {[%emt 0:00:06]} 114. Ke6 {[%emt 0:00:11]} 1-0

[Event "73rd Greek Championship 2024"]
[Site "Thessaloniki"]
[Date "2024.12.04"]
[Round "3.2"]
[White "Kourkoulos-Arditis, Stamatis"]
[Black "Stamatiou, Rodolfos"]
[Result "1-0"]
[Annotator "TA"]
[ECO "A35"]
[WhiteElo "2575"]
[BlackElo "2308"]
[PlyCount "59"]
[EventDate "2024.12.02"]
[EventType "tourn"]
[EventCountry "GRE"]
[SourceTitle "playchess.com"]
[Source "ChessBase"]
[SourceQuality "1"]
[TimeControl "40/5400+30:1800+30"]

{[%evp 17,59,25,22,8,15,12,20,0,16,-25,-14,-12,0,0,0,0,26,27,60,0,0,0,97,98,183,184,172,164,243,245,306,275,312,268,307,279,281,279,339,324,1137,1126,1040,987]} 1. Nf3 {[%emt 0:00:03]} c5 {[%emt 0:01:15]} 2. c4 {[%emt 0:00:14]} Nc6 {[%emt 1:30:15]} 3. Nc3 {[%emt 0:00:16]} g6 {[%emt 0:00:00]} 4. e3 {[%emt 0:00:34]} Nf6 {[%emt 0:00:00]} 5. d4 {[%emt 0:00:19]} cxd4 {[%emt 0:00:00]} 6. exd4 {[%emt 0:00:07]} d5 {[%emt 0:00:00]} 7. cxd5 {[%emt 0:00:24]} Nxd5 {[%emt 0:00:00]} 8. Qb3 {[%emt 0:00:15]} e6 {[%emt 0:00:00]} 9. Bb5 {[%emt 0:01:06]} Bg7 {[%emt 0:00:00]} 10. O-O {[%emt 0:01:05]} O-O {[%emt 0:00:00]} 11. Bxc6 {[%emt 0:00:19]} bxc6 {[%emt 0:00:00]} 12. Re1 {[%emt 0:05:23] The position is equal.} Qb6 {[%emt 0:00:00]} 13. Qd1 {[%emt 0:04:36]} Nxc3 $1 {[%emt 0:00:00]} 14. bxc3 {[%emt 0:00:22]} Qa5 {[%emt 0:00:00]} 15. Qb3 {[%emt 0:06:52]} Ba6 {[%emt 0:00:00]} 16. Ba3 {[%emt 0:05:33]} Rfc8 {[%emt 0:00:00]} 17. Ne5 {[%emt 0:09:38][%cal Oe5f7] Hoping for Nxf7!} Qd5 {[%emt 0:00:00]} 18. c4 {[%emt 0:06:38]} ({Better is} 18. Bc5 $14) 18... Qxd4 $11 {[%emt 0:00:00]} 19. Rad1 {[%emt 0:02:28]} Qf4 {[%emt 0:00:00]} (19... Qb6 $11 {keeps the balance.}) 20. Bd6 $16 {[%emt 0:14:10] Qa3 is the strong threat. White has more active pieces.} Rd8 {[%emt 0:00:00] [#]} (20... Bxe5 $16 21. Bxe5 Qf5) 21. g3 $1 $18 {[%emt 0:01:39]} (21. Nxc6 $2 {loses.} Rxd6 22. Rxd6 Qxd6 $19) 21... Qg5 {[%emt 0:00:00][%cal Od8d6]} 22. Nxc6 {[%emt 0:00:36]} Rd7 {[%emt 0:00:00]} (22... Re8 $142 23. c5 Rac8) 23. Nb8 {[%emt 0:07:48]} Rb7 {[%emt 0:00:00]} 24. Qa4 {[%emt 0:00:17]} Rbxb8 {[%emt 0:00:00]} 25. Bxb8 {[%emt 0:00:06]} (25. Qxa6 Rb6 26. Qa4 Qg4 $11) 25... Rxb8 {[%emt 0:00:00]} 26. Qxa6 {[%emt 0:00:08]} Qc5 {[%emt 0:00:00]} 27. Qd6 {[%emt 0:00:36] Prevents Bd4} Qc8 {[%emt 0:00:00]} 28. Rb1 {[%emt 0:00:51]} (28. c5 Bf8 29. Qe5 Rb7 $11) 28... Rxb1 {[%emt 0:00:00]} (28... Ra8 29. Qf4 (29. c5 Bf8 $18) 29... Bc3) 29. Rxb1 {[%emt 0:00:06] [#] And now Rb8 would win.} Bf8 {[%emt 0:00:00]} 30. Rb8 {[%emt 0:00:15] Weighted Error Value: White=0.08 (flawless) /Black=0.32.  Mistake:       	White=1     	Black=4      Inaccurate:     	White=1     	Black=2      OK:         	White=8     	Black=5      Best:        	White=2     	Black=2      Strong:       	White=1     	Black=1} 1-0

[Event "73rd Greek Championship 2024"]
[Site "Thessaloniki"]
[Date "2024.12.04"]
[Round "3.3"]
[White "Alexakis, Dimitris"]
[Black "Kalogridis, Antonios"]
[Result "1/2-1/2"]
[Annotator "TA"]
[ECO "C49"]
[WhiteElo "2520"]
[BlackElo "2333"]
[PlyCount "119"]
[EventDate "2024.12.02"]
[EventType "tourn"]
[EventCountry "GRE"]
[SourceTitle "playchess.com"]
[Source "ChessBase"]
[SourceQuality "1"]
[TimeControl "40/5400+30:1800+30"]

{[%evp 24,119,0,0,0,0,0,0,5,0,0,0,0,0,0,0,7,0,8,23,70,55,58,43,51,45,60,60,54,18,25,21,120,108,118,95,85,82,104,71,242,241,1113,1117,4825,31,24,0,0,0,33,36,56,0,8,0,0,0,0,0,0,0,0,0,0,0,0,0,0,0,0,0,0,0,0,0,8,8,8,8,8,8,8,8,8,8,8,8,8,8,8,8,8,8,8,8,8,8]} 1. e4 {[%emt 0:03:02]} e5 {[%emt 0:00:03]} 2. Nf3 {[%emt 0:02:24]} Nf6 {[%emt 0:00:05]} 3. Nc3 {[%emt 0:02:22]} Nc6 {[%emt 0:00:05]} 4. Bb5 {[%emt 0:00:28]} Bb4 {[%emt 0:00:05]} 5. O-O {[%emt 0:00:50]} O-O {[%emt 0:00:04]} 6. d3 {[%emt 0:04:20]} Bxc3 {[%emt 0:00:10]} 7. bxc3 {[%emt 0:00:08]} d6 {[%emt 0:00:07]} 8. h3 {[%emt 0:07:52]} Ne7 {[%emt 0:01:25]} 9. Ba4 {[%emt 0:18:22] C49: Four Knights: 4 Bb5 Bb4.} Ng6 {[%emt 0:03:27]} 10. Nh2 $146 {[%emt 0:05:57]} ({Predecessor:} 10. Re1 h6 11. Bb3 Re8 12. a4 Nh7 13. a5 Nh4 14. Nxh4 Qxh4 15. Qf3 Be6 16. Ba4 Re7 {1-0 Hakobyan,A (2619)-Estrada Nieto,J (2195) Titled Tuesday intern op 30th Apr Late blitz 2024 (1)}) 10... c6 {[%emt 0:04:47]} 11. Bb3 {[%emt 0:00:43]} d5 {[%emt 0:01:56]} 12. Qf3 {[%emt 0:07:04]} Be6 {[%emt 0:07:41]} 13. Bg5 {[%emt 0:07:00]} h6 $1 {[%emt 0:00:33]} 14. exd5 {[%emt 0:01:18]} cxd5 {[%emt 0:04:23]} 15. Bxf6 {[%emt 0:00:19]} gxf6 {[%emt 0:01:56]} 16. Ng4 {[%emt 0:06:28]} Kg7 {[%emt 0:00:23]} 17. Ne3 {[%emt 0:00:38]} Ne7 $1 {[%emt 0:14:57]} 18. Qg3+ {[%emt 0:09:31]} Kh7 $1 {[%emt 0:01:45]} 19. f4 {[%emt 0:01:24]} Rg8 {[%emt 0:02:25]} 20. Qf3 {[%emt 0:00:26]} exf4 $1 {[%emt 0:03:01]} 21. Qxf4 {[%emt 0:02:05]} Bxh3 {[%emt 0:06:27]} (21... f5 $11) 22. Qh4 {[%emt 0:02:58]} Be6 {[%emt 0:01:19]} 23. Rxf6 {[%emt 0:00:17]} Rg6 $1 {[%emt 0:02:45]} 24. Raf1 {[%emt 0:03:21]} Rxf6 {[%emt 0:06:25]} 25. Qxf6 {[%emt 0:00:48]} b5 {[%emt 0:03:31]} 26. c4 {[%emt 0:05:52]} (26. Kf2 {simplifies} Rc8 27. Ke2 Ng6 28. Qxd8 Rxd8 29. a4) 26... bxc4 {[%emt 0:12:13]} 27. dxc4 {[%emt 0:00:11]} dxc4 {[%emt 0:00:11]} (27... Qb6 $1 $11 {keeps the balance.} 28. Qf2 dxc4 29. Nxc4 Qxf2+ 30. Rxf2 Rd8) 28. Bxc4 $16 {[%emt 0:01:41]} (28. Nxc4 Rc8 $14) 28... Qb6 {[%emt 0:01:35]} 29. Bd3+ {[%emt 0:03:05]} (29. Bxe6 {simplifies} Qxe3+ 30. Kh1 Qxe6 31. Qxf7+ Qxf7 32. Rxf7+ Kg6 33. Rxe7 a5 34. Re6+) 29... Ng6 {[%emt 0:00:14]} 30. Rf3 {[%emt 0:03:14]} Rg8 {[%emt 0:01:37]} 31. Kh1 {[%emt 0:00:38]} Bxa2 $2 {[%emt 0:02:39]} (31... Rg7 $16) 32. Qa1 $18 {[%emt 0:00:34]} Be6 $2 {[%emt 0:01:29]} (32... Qb1+ 33. Qxb1 Bxb1 34. Rxf7+ Kh8) 33. Ng4 $1 $18 {[%emt 0:00:20]} Rb8 {[%emt 0:01:24]} 34. Nf6+ $2 {[%emt 0:01:14]} (34. Bxg6+ $18 fxg6 35. Nf6+ Kh8 36. Rb3) 34... Kh8 $14 {[%emt 0:00:17]} 35. Nd7+ {[%emt 0:01:06]} (35. c3 $5) 35... Qb2 {[%emt 0:00:10]} 36. Qxa7 {[%emt 0:00:00]} Bxd7 {[%emt 0:04:09]} 37. Qxd7 {[%emt 0:00:16]} Rb7 {[%emt 0:06:48]} ({Don't blunder} 37... Ne5 $2 38. Qd6 (38. Qf5 Nxd3 39. Rxd3 Rb4 $11) 38... Qc1+ 39. Rf1 $18) 38. Qe8+ {[%emt 0:00:39]} (38. Qd5 $1 $14 {is superior.} Kg7 39. c3 Qa1+ 40. Rf1) 38... Kg7 $11 {[%emt 0:00:06]} 39. Bc4 {[%emt 0:00:28]} (39. Bxg6 {simplifies} fxg6 40. Qf8+ Kh7 41. Rf7+) 39... Ne5 {[%emt 0:01:20]} 40. Rg3+ {[%emt 0:00:00]} Ng6 {[%emt 0:00:00]} 41. Bd5 {[%emt 0:20:11]} Ra7 {[%emt 0:06:02]} 42. c3 {[%emt 0:06:33]} Qc1+ {[%emt 0:02:47]} 43. Kh2 {[%emt 0:00:06]} Qf4 {[%emt 0:00:16]} 44. Qe3 {[%emt 0:00:44]} Qxe3 {[%emt 0:02:16]} 45. Rxe3 {[%emt 0:00:05]} Rc7 {[%emt 0:00:06]} 46. Kg1 {[%emt 0:00:59]} Nf4 {[%emt 0:02:24]} 47. Bf3 {[%emt 0:00:49]} Kf6 {[%emt 0:00:31]} 48. Kf2 {[%emt 0:00:15]} Rc5 {[%emt 0:00:55]} 49. Re4 {[%emt 0:02:34]} Nd3+ {[%emt 0:06:52]} 50. Ke3 {[%emt 0:00:17]} Rxc3 {[%emt 0:01:04]} 51. Kd4 {[%emt 0:01:18]} Ra3 {[%emt 0:00:07]} 52. Re3 {[%emt 0:00:58]} Nb4 $1 {[%emt 0:00:04]} 53. Rxa3 {[%emt 0:00:09]} Nc2+ {[%emt 0:00:04]} 54. Kc3 {[%emt 0:00:46]} Nxa3 {[%emt 0:00:04]} 55. Be2 {[%emt 0:00:07]} Kg5 {[%emt 0:00:59]} 56. Kb2 {[%emt 0:00:15]} Kf4 {[%emt 0:00:05]} 57. Kxa3 {[%emt 0:00:05]} Kg3 {[%emt 0:00:04]} 58. Bf3 {[%emt 0:00:06]} h5 {[%emt 0:00:04]} 59. Bxh5 {[%emt 0:00:05]} Kxg2 {[%emt 0:00:03]} 60. Bxf7 {[%emt 0:00:04]} 1/2-1/2

[Event "73rd Greek Championship 2024"]
[Site "Thessaloniki"]
[Date "2024.12.04"]
[Round "3.4"]
[White "Tsaknakis, Zisis"]
[Black "Hadzimanolis, Antonios"]
[Result "1/2-1/2"]
[Annotator "RC"]
[ECO "C77"]
[WhiteElo "2259"]
[BlackElo "2159"]
[PlyCount "108"]
[EventDate "2024.12.02"]
[EventType "tourn"]
[EventCountry "GRE"]
[SourceTitle "playchess.com"]
[Source "ChessBase"]
[SourceQuality "1"]
[TimeControl "40/5400+30:1800+30"]

1. e4 {[%emt 0:00:30]} e5 {[%emt 0:01:13]} 2. Nf3 {[%emt 0:00:00]} Nc6 {[%emt 0:00:09]} 3. Bb5 {[%emt 0:00:02]} a6 {[%emt 0:00:07]} 4. Ba4 {[%emt 0:00:03]} Nf6 {[%emt 0:00:09]} 5. O-O {[%emt 0:00:04]} Be7 {[%emt 0:00:06]} 6. d3 {[%emt 0:00:03]} b5 {[%emt 0:05:58]} 7. Bb3 {[%emt 0:00:31]} O-O {[%emt 0:00:15]} 8. Nc3 {[%emt 0:00:08]} d6 {[%emt 0:01:47]} 9. a3 {[%emt 0:00:03]} Nd4 {[%emt 0:13:00]} 10. Nxd4 {[%emt 0:00:48]} exd4 {[%emt 0:00:03]} 11. Nd5 {[%emt 0:05:08]} Nxd5 {[%emt 0:01:19]} 12. Bxd5 {[%emt 0:00:02]} Rb8 {[%emt 0:00:07]} 13. a4 {[%emt 0:01:15]} Be6 {[%emt 0:01:36]} 14. Bxe6 {[%emt 0:04:38]} fxe6 {[%emt 0:00:03]} 15. Qg4 {[%emt 0:08:14]} Qd7 {[%emt 0:11:36]} 16. b3 {[%emt 0:14:22]} b4 {[%emt 0:15:07]} 17. Bb2 {[%emt 0:01:25]} c5 {[%emt 0:12:04]} 18. Rae1 {[%emt 0:00:22]} Rf6 {[%emt 0:00:50]} 19. Bc1 {[%emt 0:01:32]} Rg6 {[%emt 0:00:04]} 20. Qh3 {[%emt 0:01:28]} Rf8 {[%emt 0:01:22]} 21. f4 {[%emt 0:02:17]} Rh6 {[%emt 0:00:59]} 22. Qf3 {[%emt 0:01:40]} Rhf6 {[%emt 0:06:21]} 23. h4 {[%emt 0:15:35]} R6f7 {[%emt 0:02:41]} 24. Qh3 {[%emt 0:06:17]} Bd8 {[%emt 0:05:36]} 25. g4 {[%emt 0:03:23]} g6 {[%emt 0:03:08]} 26. Re2 {[%emt 0:06:14]} Qe7 {[%emt 0:04:03]} 27. Rh2 {[%emt 0:10:35]} Kh8 {[%emt 0:00:58]} 28. g5 {[%emt 0:01:09]} h5 {[%emt 0:05:19]} 29. gxh6 {[%emt 0:03:24]} Rh7 {[%emt 0:05:08]} 30. f5 {[%emt 0:04:21]} gxf5 {[%emt 0:00:01]} 31. Bg5 {[%emt 0:00:08]} Qd7 {[%emt 0:01:47]} 32. exf5 {[%emt 0:01:11]} exf5 {[%emt 0:00:48]} 33. Rhf2 {[%emt 0:01:02]} Rg8 {[%emt 0:00:47]} 34. Rg2 {[%emt 0:01:51]} Rf8 {[%emt 0:01:00]} 35. Bf4 {[%emt 0:01:34]} Bf6 {[%emt 0:00:29]} 36. Rg6 {[%emt 0:01:57]} Be5 {[%emt 0:00:44]} 37. Qg3 {[%emt 0:00:36]} Re7 {[%emt 0:00:58]} 38. h7 {[%emt 0:02:46]} Qe8 {[%emt 0:00:00]} 39. Bxe5+ {[%emt 0:01:16]} Rxe5 {[%emt 0:00:24]} 40. Qg5 {[%emt 0:00:00]} Re7 {[%emt 0:00:00]} 41. Rg8+ {[%emt 0:06:21]} Rxg8 {[%emt 0:05:39]} 42. Qxg8+ {[%emt 0:03:01]} Qxg8+ {[%emt 0:00:03]} 43. hxg8=Q+ {[%emt 0:00:10]} Kxg8 {[%emt 0:00:08]} 44. Rf2 {[%emt 0:25:04]} f4 45. Rxf4 {[%emt 0:00:00]} Re4 {[%emt 0:29:04]} 46. Rf5 Re1+ {[%emt 0:00:00]} 47. Rf1 {[%emt 0:00:00]} Re2 {[%emt 0:00:00]} 48. Rf2 {[%emt 0:00:00]} Re1+ {[%emt 0:00:00]} 49. Kg2 {[%emt 0:00:00]} Kg7 {[%emt 0:00:00]} 50. Kf3 {[%emt 0:00:00]} Kg6 {[%emt 0:00:00]} 51. Re2 {[%emt 0:00:00]} Rf1+ {[%emt 0:00:00]} 52. Rf2 {[%emt 0:00:00]} Re1 {[%emt 0:00:00]} 53. Re2 {[%emt 0:00:00]} Rf1+ {[%emt 0:00:00]} 54. Rf2 {[%emt 0:00:00]} Re1 {[%emt 0:04:30]} 1/2-1/2